bitfinex-derivatives/quotes_BTCF0:USTF0_20250614
["timestamp","ask_amount","ask_price","bid_price","bid_amount"]
[1749935216753,0.84404805,105020.0,105010.0,0.002]
[1749935216954,0.93323497,105020.0,105010.0,0.002]
[1749935217158,0.93323497,105020.0,105010.0,0.1923858]
[1749935220065,0.92909662,105020.0,105010.0,0.1923858]
[1749935221365,1.89557662,105020.0,105010.0,0.1923858]
[1749935221564,0.92909662,105020.0,105010.0,0.1923858]
[1749935221866,0.67089776,105020.0,105010.0,0.1923858]
[1749935222066,0.67089776,105020.0,105010.0,0.2241858]
[1749935222367,0.89589662,105020.0,105010.0,0.2241858]
[1749935222563,0.89589662,105020.0,105010.0,0.2574858]
[1749935223263,0.58579886,105020.0,105010.0,0.4002665]
[1749935223562,0.77616646,105020.0,105010.0,0.4002665]
[1749935224668,0.58579886,105020.0,105010.0,0.4002665]
[1749935224861,0.5511677,105020.0,105010.0,0.4002665]
[1749935225558,0.3608,105020.0,105010.0,0.44199901]
[1749935225768,0.5511677,105020.0,105010.0,0.44199901]
[1749935226971,0.9281204,105030.0,105020.0,0.1903676]
[1749935227165,0.82126154,105030.0,105020.0,0.2210676]
[1749935227362,1.0462604,105030.0,105020.0,0.2210676]
[1749935227562,0.85406154,105030.0,105020.0,0.2210676]
[1749935227860,1.0790604,105030.0,105020.0,0.2210676]
[1749935228062,1.0800604,105030.0,105020.0,0.2210676]
[1749935228457,1.0810604,105030.0,105020.0,0.2210676]
[1749935229068,0.8970204,105030.0,105020.0,0.4051076]
[1749935230468,0.77792584,105030.0,105020.0,0.4051076]
[1749935230771,0.77792584,105030.0,105020.0,0.2210676]
[1749935230970,0.77792584,105030.0,105020.0,0.4051076]
[1749935231468,0.22499886,105030.0,105020.0,0.9086747]
[1749935231667,0.41535206,105030.0,105020.0,0.9086747]
[1749935231872,0.41535206,105030.0,105020.0,0.9412747]
[1749935233171,0.41535206,105030.0,105020.0,0.9731747]
[1749935234165,0.42518112,105030.0,105020.0,0.9731747]
[1749935239977,0.54427568,105030.0,105020.0,0.9731747]
[1749935240374,0.54841403,105030.0,105020.0,0.9731747]
[1749935249175,0.57645879,105030.0,105020.0,0.9731747]
[1749935249381,0.57645879,105030.0,105020.0,0.7891347]
[1749935249584,0.82950241,105030.0,105020.0,0.9731747]
[1749935249880,0.57645879,105030.0,105020.0,0.9731747]
[1749935251883,0.57645879,105030.0,105020.0,1.01493763]
[1749935253683,0.45736423,105030.0,105020.0,1.01493763]
[1749935255477,0.26701103,105030.0,105020.0,1.01493763]
[1749935255785,0.09339345,105030.0,105020.0,1.26798125]
[1749935256083,0.09339345,105030.0,105020.0,1.31223163]
[1749935256484,0.34643707,105030.0,105020.0,1.31223163]
[1749935256685,0.34643707,105030.0,105020.0,1.26798125]
[1749935256881,0.34643707,105030.0,105020.0,0.83089763]
[1749935257083,0.35599633,105030.0,105020.0,1.31071163]
[1749935257284,0.09339345,105030.0,105020.0,1.05766801]
[1749935257689,0.09339345,105030.0,105020.0,1.01341763]
[1749935258386,0.09339345,105030.0,105020.0,1.01541763]
[1749935268590,0.09339345,105030.0,105020.0,1.01537763]
[1749935268591,0.28374295,105030.0,105020.0,1.01537763]
[1749935268794,0.50864142,105030.0,105020.0,0.78530713]
[1749935268986,0.19448785,105030.0,105020.0,0.0327]
[1749935269180,0.78166088,105030.0,105020.0,0.2230677]
[1749935269379,0.81086088,105030.0,105020.0,0.2230677]
[1749935269584,0.62838088,105030.0,105020.0,0.2230677]
[1749935269784,0.81086088,105030.0,105020.0,0.0327]
[1749935269991,0.81086088,105030.0,105020.0,0.2230676]
[1749935270388,0.69176632,105030.0,105020.0,0.2220676]
[1749935270589,0.69276632,105030.0,105020.0,0.2220676]
[1749935270990,0.69276632,105030.0,105020.0,0.2210676]
[1749935271692,0.69276632,105030.0,105020.0,0.5818676]
[1749935272090,0.69276632,105030.0,105020.0,0.2210676]
[1749935275295,0.51028632,105030.0,105020.0,0.2210676]
[1749935275500,1.47256632,105030.0,105020.0,0.2210676]
[1749935279405,1.59166088,105030.0,105020.0,0.0307]
[1749935279595,1.73443158,105030.0,105020.0,0.1903677]
[1749935283207,2.01570659,105030.0,105020.0,0.1903677]
[1749935283601,2.37650659,105030.0,105020.0,0.1903677]
[1749935285412,1.05342659,105030.0,105020.0,0.5511677]
[1749935285611,1.63755805,105030.0,105020.0,0.5837677]
[1749935285810,1.63755805,105030.0,105020.0,0.86825444]
[1749935286007,1.60715805,105030.0,105020.0,0.86825444]
[1749935286208,1.60715805,105030.0,105020.0,0.90115444]
[1749935286508,1.57685805,105030.0,105020.0,0.90115444]
[1749935286707,1.57713805,105030.0,105020.0,0.90115444]
[1749935286907,1.57713805,105030.0,105020.0,0.6480677]
[1749935287211,1.4298785,105030.0,105020.0,0.6480677]
[1749935287408,1.54897306,105030.0,105020.0,0.6480677]
[1749935288209,1.4298785,105030.0,105020.0,0.6480677]
[1749935290502,1.20495675,105030.0,105020.0,0.6480677]
[1749935290710,1.4299985,105030.0,105020.0,0.6480677]
[1749935292013,0.4679985,105030.0,105020.0,0.6480677]
[1749935292213,1.4299985,105030.0,105020.0,0.6480677]
[1749935292712,1.54909306,105030.0,105020.0,0.6480677]
[1749935295718,1.32381131,105030.0,105020.0,0.6480677]
[1749935297212,0.12423291,105030.0,105020.0,0.6480677]
[1749935297415,1.08543291,105030.0,105020.0,0.6480677]
[1749935297614,1.08543291,105030.0,105020.0,0.68983113]
[1749935298117,0.96633835,105030.0,105020.0,0.68983113]
[1749935298418,0.78397835,105030.0,105020.0,0.68983113]
[1749935299421,0.00513835,105030.0,105020.0,0.68983113]
[1749935303924,0.00513835,105030.0,105020.0,0.87219113]
[1749935307727,0.00513835,105030.0,105020.0,0.87218977]
[1749935309230,0.25814775,105030.0,105020.0,1.12519917]
[1749935310435,0.37724231,105030.0,105020.0,1.0834371]
[1749935312827,0.82060121,105030.0,105020.0,0.0969]
[1749935313032,1.18140121,105030.0,105020.0,0.2229676]
[1749935313231,0.88430121,105030.0,105020.0,0.2229676]
[1749935314726,1.24510121,105030.0,105020.0,0.2229676]
[1749935314931,0.88430121,105030.0,105020.0,0.2229676]
[1749935315634,1.84706121,105030.0,105020.0,0.2229676]
[1749935320536,1.84706121,105030.0,105020.0,0.26469325]
[1749935321843,1.84706121,105030.0,105020.0,0.26469305]
[1749935323041,1.84706121,105030.0,105020.0,0.2229676]
[1749935324241,2.20786121,105030.0,105020.0,0.04172546]
[1749935324437,2.20786121,105030.0,105010.0,0.5035833]
[1749935324438,0.1903677,105020.0,105010.0,0.581981]
[1749935324638,0.5384771,105020.0,105010.0,0.62370757]
[1749935325945,0.5384771,105020.0,105010.0,0.26290757]
[1749935326340,0.8992771,105020.0,105010.0,0.04172657]
[1749935326642,0.1903858,105010.0,105000.0,0.7564926]
[1749935326835,1.34358232,105010.0,105000.0,0.79820814]
[1749935327237,1.52654232,105010.0,105000.0,0.79820814]
[1749935327445,0.34221652,105010.0,105000.0,1.05121754]
[1749935327744,0.53260222,105010.0,105000.0,1.08131754]
[1749935328049,0.53260222,105010.0,105000.0,1.08231754]
[1749935328345,0.53260232,105010.0,105000.0,1.08331754]
[1749935328534,0.34221652,105010.0,105000.0,1.08331754]
[1749935328737,0.53260232,105010.0,105000.0,1.08331754]
[1749935328945,0.34221652,105010.0,105000.0,1.08331754]
[1749935330844,0.34635487,105010.0,105000.0,1.08331754]
[1749935332344,0.09334547,105010.0,105000.0,1.08331754]
[1749935332568,0.00413835,105010.0,105000.0,1.08331754]
[1749935334353,0.00413835,105010.0,105000.0,1.33632694]
[1749935334545,0.00413835,105010.0,105000.0,1.3806136]
[1749935336242,0.00413835,105010.0,105000.0,1.1276042]
[1749935336549,0.00413835,105010.0,105000.0,2.0912042]
[1749935337249,0.00413835,105010.0,105000.0,2.06313939]
[1749935339845,0.00413835,105010.0,105000.0,1.8378748]
[1749935340153,0.00413835,105010.0,105000.0,2.06281939]
[1749935343456,0.00413835,105010.0,105000.0,1.8378748]
[1749935343656,0.00413835,105010.0,105000.0,2.06281939]
[1749935344257,0.19452415,105010.0,105000.0,0.8745948]
[1749935344459,0.00413835,105010.0,105000.0,1.79378814]
[1749935345465,0.00413835,105010.0,105000.0,2.01873273]
[1749935346656,0.00413835,105010.0,105000.0,1.98803273]
[1749935347954,0.00413835,105010.0,105000.0,1.70118814]
[1749935348961,0.00413835,105010.0,105000.0,1.70170814]
[1749935350560,0.00413835,105010.0,105000.0,1.7459948]
[1749935352761,0.00413835,105010.0,105000.0,1.97093939]
[1749935355865,0.00413835,105010.0,105000.0,1.7459948]
[1749935359166,0.00413835,105010.0,105000.0,1.74586317]
[1749935360564,0.09334547,105010.0,105000.0,1.74586317]
[1749935361375,0.34643544,105010.0,105000.0,1.99895314]
[1749935364569,0.34643544,105010.0,105000.0,1.99747314]
[1749935365166,0.09334547,105010.0,105000.0,1.99747314]
[1749935365370,0.34643544,105010.0,105000.0,1.99747314]
[1749935365570,0.34643544,105010.0,105000.0,1.03495314]
[1749935365770,0.34643544,105010.0,105000.0,1.74418317]
[1749935366072,0.34643544,105010.0,105000.0,1.99727314]
[1749935373974,0.34643544,105010.0,105000.0,2.05631234]
[1749935374177,0.09334547,105010.0,105000.0,2.05631234]
[1749935375279,0.09334547,105010.0,105000.0,1.99727314]
[1749935375580,0.34643544,105010.0,105000.0,1.03495314]
[1749935375780,0.34643544,105010.0,105000.0,1.99675314]
[1749935376981,0.53682124,105010.0,105000.0,1.99675314]
[1749935378887,0.34643544,105010.0,105000.0,1.99675314]
[1749935383489,0.34643544,105010.0,105000.0,2.05579234]
[1749935383695,0.00413835,105010.0,105000.0,2.30888231]
[1749935384892,5e-08,105010.0,105000.0,2.55888231]
[1749935385083,5e-08,105010.0,105000.0,2.30888231]
[1749935385284,5e-08,105010.0,105000.0,2.26467262]
[1749935385691,5e-08,105010.0,105000.0,2.3089259]
[1749935385893,5e-08,105010.0,105000.0,2.3408259]
[1749935386192,5e-08,105010.0,105000.0,2.34084136]
[1749935386392,5e-08,105010.0,105000.0,2.34084269]
[1749935386693,5e-08,105010.0,105000.0,3.16388269]
[1749935387491,5e-08,105010.0,105000.0,3.11961262]
[1749935387691,5e-08,105010.0,105000.0,3.22637365]
[1749935388191,5e-08,105010.0,105000.0,3.18211262]
[1749935388694,5e-08,105010.0,105000.0,3.22636863]
[1749935389190,5e-08,105010.0,105000.0,3.18211262]
[1749935389589,5e-08,105010.0,105000.0,3.2263645]
[1749935391195,5e-08,105010.0,105000.0,3.5463645]
[1749935391393,5e-08,105010.0,105000.0,3.18211262]
[1749935391593,5e-08,105010.0,105000.0,3.22635717]
[1749935391794,5e-08,105010.0,105000.0,3.18211262]
[1749935392699,5e-08,105010.0,105000.0,3.2263561]
[1749935400404,5e-08,105010.0,105000.0,3.1673169]
[1749935407703,5e-08,105010.0,105000.0,3.2263561]
[1749935408497,5e-08,105010.0,105000.0,3.30097026]
[1749935410408,5e-08,105010.0,105000.0,3.25672678]
[1749935414806,5e-08,105010.0,105000.0,3.18071262]
[1749935419511,5e-08,105010.0,105000.0,3.17971262]
[1749935419711,5e-08,105010.0,105000.0,3.18371262]
[1749935420112,5e-08,105010.0,105000.0,2.51331262]
[1749935420308,5e-08,105010.0,105000.0,3.47367262]
[1749935421609,5e-08,105010.0,105000.0,3.50327347]
[1749935422015,5e-08,105010.0,105000.0,3.50318573]
[1749935422217,0.15100712,105030.0,105020.0,0.1903676]
[1749935422508,0.15100712,105030.0,105020.0,2.2113336]
[1749935422806,0.15100712,105030.0,105020.0,2.2435336]
[1749935423009,0.40409709,105030.0,105020.0,2.2435336]
[1749935424216,0.31488997,105030.0,105020.0,2.2455336]
[1749935425703,0.0618,105030.0,105020.0,2.2455336]
[1749935425910,0.31488997,105030.0,105020.0,2.2455336]
[1749935427716,0.31488997,105030.0,105020.0,2.23137845]
[1749935430414,0.40409709,105030.0,105020.0,2.23137845]
[1749935431121,0.40409709,105030.0,105020.0,1.01792848]
[1749935431314,0.59444659,105030.0,105020.0,1.91586848]
[1749935431620,0.43329709,105030.0,105020.0,1.91586848]
[1749935431920,0.62364659,105030.0,105020.0,1.91586848]
[1749935432126,0.62364659,105030.0,105020.0,2.16895845]
[1749935432316,0.62364659,105030.0,105020.0,1.91586848]
[1749935432516,0.62364659,105030.0,105020.0,2.16895845]
[1749935432815,0.62364659,105030.0,105020.0,2.19935845]
[1749935433223,0.62364659,105030.0,105020.0,1.94626848]
[1749935433521,0.62364659,105030.0,105020.0,2.19935845]
[1749935435319,0.62778494,105030.0,105020.0,2.19935845]
[1749935435924,0.88087491,105030.0,105020.0,0.98602848]
[1749935436125,0.37469497,105030.0,105020.0,0.98602848]
[1749935436330,0.62778494,105030.0,105020.0,0.98602848]
[1749935442729,0.37469497,105030.0,105020.0,0.98602848]
[1749935442929,0.62778494,105030.0,105020.0,0.98602848]
[1749935444635,0.94689091,105030.0,105020.0,0.40446088]
[1749935444836,0.97677835,105030.0,105020.0,0.1923676]
[1749935445039,1.00597835,105030.0,105020.0,0.1923676]
[1749935446036,1.78949835,105030.0,105020.0,0.1923676]
[1749935447037,1.78949835,105030.0,105020.0,0.1913676]
[1749935448041,1.78949835,105030.0,105020.0,0.1903676]
[1749935450838,1.78957835,105030.0,105020.0,0.1903676]
[1749935451739,1.78957835,105030.0,105020.0,0.2222676]
[1749935452141,1.69436235,105030.0,105020.0,0.2222676]
[1749935455950,0.91076235,105030.0,105020.0,0.2222676]
[1749935456150,1.87576235,105030.0,105020.0,0.2222676]
[1749935460857,1.84656235,105030.0,105020.0,0.2222676]
[1749935463450,1.84656235,105030.0,105020.0,0.2550676]
[1749935463857,1.89656235,105030.0,105020.0,0.2550676]
[1749935464652,1.89656235,105030.0,105020.0,0.0647]
[1749935464956,1.89656235,105030.0,105020.0,0.2550678]
[1749935465759,1.89920235,105030.0,105020.0,0.2550678]
[1749935467158,1.84920235,105030.0,105020.0,0.2550678]
[1749935468259,0.1903859,105010.0,105000.0,0.6939944]
[1749935468558,0.27956856,105010.0,105000.0,0.80065008]
[1749935468759,1.31829853,105010.0,105000.0,0.80065008]
[1749935469662,1.50481853,105010.0,105000.0,0.83585008]
[1749935470262,0.53265853,105010.0,105000.0,0.83585008]
[1749935470459,1.50473853,105010.0,105000.0,0.8358459]
[1749935470659,1.31901853,105010.0,105000.0,0.8358459]
[1749935472257,0.08918266,105010.0,105000.0,1.08893587]
[1749935472561,0.53265853,105010.0,105000.0,1.08893587]
[1749935473962,0.27956856,105010.0,105000.0,0.8358459]
[1749935474165,0.53265853,105010.0,105000.0,1.08893587]
[1749935474666,0.53265853,105010.0,105000.0,0.8358459]
[1749935474867,0.53265853,105010.0,105000.0,1.08893587]
[1749935475763,0.34227263,105010.0,105000.0,1.08893587]
[1749935479171,0.53265853,105010.0,105000.0,1.08893587]
[1749935480474,0.34227263,105010.0,105000.0,1.08893587]
[1749935480673,0.53265853,105010.0,105000.0,1.08893587]
[1749935480975,0.53679688,105010.0,105000.0,1.08893587]
[1749935481772,0.53679688,105010.0,105000.0,0.8358459]
[1749935484978,0.53265853,105010.0,105000.0,0.8358459]
[1749935486278,0.53265853,105010.0,105000.0,1.08893587]
[1749935488178,0.34227263,105010.0,105000.0,1.08893587]
[1749935488486,0.53265853,105010.0,105000.0,1.08893587]
[1749935491578,0.34227263,105010.0,105000.0,1.08893587]
[1749935492080,0.34641098,105010.0,105000.0,1.08893587]
[1749935492377,0.25722832,105010.0,105000.0,1.08893587]
[1749935496981,0.25722832,105010.0,105000.0,1.16436835]
[1749935498083,0.37613853,105010.0,105000.0,1.16436835]
[1749935500589,0.34651822,105010.0,105000.0,1.16436835]
[1749935501283,0.25722832,105010.0,105000.0,1.16436835]
[1749935504590,0.09343701,105010.0,105000.0,2.24623018]
[1749935504990,0.09343701,105010.0,105000.0,2.05214708]
[1749935505387,0.34238863,105020.0,105010.0,0.1903859]
[1749935505590,0.34238863,105020.0,105010.0,1.12844737]
[1749935506586,0.34238863,105020.0,105010.0,1.12944737]
[1749935506787,0.34238863,105020.0,105010.0,1.13044737]
[1749935510296,0.34238863,105020.0,105010.0,0.8773574]
[1749935510485,0.34238863,105020.0,105010.0,1.13044737]
[1749935512597,0.34652698,105020.0,105010.0,1.13044737]
[1749935514496,0.34238863,105020.0,105010.0,1.13044737]
[1749935515597,0.09343701,105020.0,105010.0,1.13044737]
[1749935515991,0.00413835,105020.0,105010.0,1.13044737]
[1749935517594,0.52786863,105030.0,105020.0,0.1903678]
[1749935517790,0.52786863,105030.0,105020.0,0.6479678]
[1749935517989,0.34238863,105030.0,105020.0,0.6479678]
[1749935518599,0.34652698,105030.0,105020.0,0.94250495]
[1749935519492,0.34238863,105030.0,105020.0,0.94250495]
[1749935522698,0.34238863,105030.0,105020.0,0.68941498]
[1749935524703,0.34652698,105030.0,105020.0,0.68941498]
[1749935525501,0.37762698,105030.0,105020.0,0.68941498]
[1749935530409,0.37762698,105030.0,105020.0,0.87441498]
[1749935531112,0.56797668,105030.0,105020.0,0.68941498]
[1749935531311,0.37762698,105030.0,105020.0,0.68941498]
[1749935536520,0.03881141,105030.0,105020.0,2.09305494]
[1749935536822,0.11891021,105050.0,105040.0,0.1903316]
[1749935537018,0.04431833,105060.0,105050.0,0.1903134]
[1749935537218,0.16134574,105060.0,105050.0,0.61322102]
[1749935537420,0.54861547,105060.0,105050.0,0.61322102]
[1749935537624,0.57971547,105060.0,105050.0,0.61322102]
[1749935538627,0.3266255,105060.0,105050.0,0.61322102]
[1749935538832,0.3266255,105060.0,105050.0,0.86631099]
[1749935539123,0.01361833,105060.0,105050.0,0.86631099]
[1749935539325,0.75151121,105070.0,105060.0,0.1902953]
[1749935539531,0.665601,105070.0,105060.0,0.5816953]
[1749935539723,0.665601,105070.0,105060.0,0.58244911]
[1749935540030,0.47646265,105070.0,105060.0,0.58244911]
[1749935540226,0.47118545,105070.0,105060.0,0.61424911]
[1749935540421,0.66146265,105070.0,105060.0,0.61424911]
[1749935540623,0.78037286,105070.0,105060.0,0.61424911]
[1749935541020,0.59537286,105070.0,105060.0,0.61424911]
[1749935541226,0.75203213,105070.0,105060.0,0.61424911]
[1749935541429,0.63312192,105070.0,105060.0,0.61424911]
[1749935541931,0.42166123,105070.0,105060.0,0.61424911]
[1749935545033,0.64641047,105070.0,105060.0,0.61424911]
[1749935545431,0.64641047,105070.0,105060.0,0.58244911]
[1749935545631,0.67561047,105070.0,105060.0,0.58244911]
[1749935547239,0.79452068,105070.0,105060.0,0.58244911]
[1749935548342,0.67561047,105070.0,105060.0,0.58244911]
[1749935548937,0.67970882,105070.0,105060.0,0.58244911]
[1749935549940,0.67557047,105070.0,105060.0,0.58244911]
[1749935552235,0.49061047,105070.0,105060.0,0.58244911]
[1749935552444,0.67557047,105070.0,105060.0,0.58244911]
[1749935555234,0.64637047,105070.0,105060.0,0.58244911]
[1749935555439,0.23666123,105070.0,105060.0,0.61434911]
[1749935555741,0.64637047,105070.0,105060.0,0.61434911]
[1749935556547,0.64637047,105070.0,105060.0,0.58244911]
[1749935562646,0.76528068,105070.0,105060.0,0.58244911]
[1749935563345,0.79341004,105070.0,105060.0,0.58244911]
[1749935564246,0.79341004,105070.0,105060.0,0.61504911]
[1749935564848,0.82391004,105070.0,105060.0,0.61504911]
[1749935566547,0.57103144,105070.0,105060.0,0.61504911]
[1749935566741,1.60671004,105070.0,105060.0,0.61504911]
[1749935567649,1.57371004,105070.0,105060.0,0.61504911]
[1749935567849,1.57371004,105070.0,105060.0,0.64714911]
[1749935569149,1.45479983,105070.0,105060.0,0.64714911]
[1749935569349,1.57277688,105070.0,105060.0,0.90002771]
[1749935569651,1.57277688,105070.0,105060.0,0.64714911]
[1749935570346,1.57277688,105070.0,105060.0,0.64790292]
[1749935577157,1.42385983,105070.0,105060.0,0.64790292]
[1749935580662,1.57277688,105070.0,105060.0,0.64790292]
[1749935582564,1.31989828,105070.0,105060.0,0.64790292]
[1749935582762,1.57277688,105070.0,105060.0,0.64790292]
[1749935585167,0.35257908,105070.0,105060.0,0.64790292]
[1749935585363,0.38527809,105070.0,105060.0,0.96186144]
[1749935585568,1.04778263,105070.0,105060.0,0.96186144]
[1749935587369,1.04778263,105070.0,105060.0,0.94302232]
[1749935588566,1.23258263,105070.0,105060.0,0.94302232]
[1749935588866,1.32175025,105070.0,105060.0,0.96164565]
[1749935589867,0.35543025,105070.0,105060.0,0.96164565]
[1749935590070,1.1233417,105070.0,105060.0,0.96164565]
[1749935591470,1.3067017,105070.0,105060.0,0.96164565]
[1749935592472,1.320706,105070.0,105060.0,0.96164565]
[1749935594172,1.510984,105070.0,105060.0,0.96164565]
[1749935595173,1.320706,105070.0,105060.0,0.96164565]
[1749935601378,1.137346,105070.0,105060.0,0.96164565]
[1749935601777,0.0892631,105070.0,105060.0,1.21452425]
[1749935601977,9.548e-05,105070.0,105060.0,1.21452425]
[1749935602274,9.548e-05,105070.0,105060.0,0.96164565]
[1749935603478,9.548e-05,105070.0,105060.0,0.96264565]
[1749935603776,9.548e-05,105070.0,105060.0,0.96364565]
[1749935605068,0.25297408,105070.0,105060.0,0.96364565]
[1749935605569,0.25297408,105070.0,105060.0,0.78521249]
[1749935605771,0.25297408,105070.0,105060.0,1.03809109]
[1749935610181,0.3421417,105070.0,105060.0,1.03809109]
[1749935613578,0.3421417,105070.0,105060.0,0.78521249]
[1749935613886,0.3421417,105070.0,105060.0,1.03809109]
[1749935617190,0.3421417,105070.0,105060.0,1.03804361]
[1749935618990,0.0892631,105070.0,105060.0,1.03804361]
[1749935619190,0.3421417,105070.0,105060.0,1.03804361]
[1749935619993,0.5324196,105070.0,105060.0,0.71071957]
[1749935620187,0.5324196,105070.0,105060.0,0.62739624]
[1749935620386,0.5962196,105070.0,105060.0,0.62739624]
[1749935620787,0.9570196,105070.0,105060.0,0.04570094]
[1749935620988,0.89705198,105070.0,105060.0,0.23599694]
[1749935621188,1.01606744,105070.0,105060.0,0.19380362]
[1749935621894,0.65526744,105070.0,105060.0,0.19380362]
[1749935622098,0.65526744,105070.0,105060.0,0.19280362]
[1749935623292,0.65526744,105070.0,105060.0,0.19180362]
[1749935624795,1.43514744,105070.0,105060.0,0.19180362]
[1749935625192,0.78913058,105070.0,105060.0,0.00150762]
[1749935625394,2.27172854,105070.0,105060.0,0.00150762]
[1749935625592,0.6960534,105060.0,105050.0,0.6462582]
[1749935625898,1.06140293,105060.0,105050.0,0.6462582]
[1749935626097,1.09060293,105060.0,105050.0,0.6462582]
[1749935626799,0.9717534,105060.0,105050.0,0.6462582]
[1749935627496,0.9717534,105060.0,105050.0,0.6472582]
[1749935627799,0.9717534,105060.0,105050.0,0.6801582]
[1749935628699,1.06083571,105060.0,105050.0,0.6801582]
[1749935630501,0.9717534,105060.0,105050.0,0.6801582]
[1749935631398,1.7511134,105060.0,105050.0,0.6801582]
[1749935632398,0.5694572,105060.0,105050.0,0.6801582]
[1749935632604,1.4368748,105060.0,105050.0,0.7446582]
[1749935633102,1.6897534,105060.0,105050.0,0.7118582]
[1749935633293,1.7205534,105060.0,105050.0,0.7118582]
[1749935634112,1.80958408,105060.0,105050.0,0.7118582]
[1749935634310,1.7205534,105060.0,105050.0,0.7118582]
[1749935634798,1.80958124,105060.0,105050.0,0.7118582]
[1749935635411,1.7205534,105060.0,105050.0,0.7118582]
[1749935635602,1.30382099,105060.0,105050.0,0.7118582]
[1749935635798,1.80957819,105060.0,105050.0,0.7118582]
[1749935637109,1.7205534,105060.0,105050.0,0.7118582]
[1749935640213,1.7205534,105060.0,105050.0,0.75399501]
[1749935640214,1.30386297,105060.0,105050.0,0.75399501]
[1749935640616,1.80962017,105060.0,105050.0,0.75399501]
[1749935640909,1.80962017,105060.0,105050.0,0.78639501]
[1749935643218,1.80962017,105060.0,105050.0,0.7442582]
[1749935644124,1.80962017,105060.0,105050.0,0.78641638]
[1749935644319,1.80962017,105060.0,105050.0,0.7442582]
[1749935644617,1.77882017,105060.0,105050.0,0.78643177]
[1749935645128,0.81658017,105060.0,105050.0,0.78643177]
[1749935645313,0.78508017,105060.0,105050.0,0.7442582]
[1749935645617,1.49504157,105060.0,105050.0,0.78643886]
[1749935645814,1.74792017,105060.0,105050.0,0.78643886]
[1749935646215,1.74792017,105060.0,105050.0,0.7442582]
[1749935647611,1.74792017,105060.0,105050.0,0.78647444]
[1749935648614,0.78508017,105060.0,105050.0,0.78647444]
[1749935648814,0.34190537,105060.0,105050.0,0.78647444]
[1749935649117,1.49520167,105060.0,105050.0,0.78647444]
[1749935650219,0.53220167,105060.0,105050.0,0.78647444]
[1749935650415,1.49508167,105060.0,105050.0,0.78647444]
[1749935650615,1.4060549,105060.0,105050.0,0.78647444]
[1749935654924,1.52490443,105060.0,105050.0,0.78647444]
[1749935660030,1.77778303,105060.0,105050.0,0.78647444]
[1749935660527,1.52490443,105060.0,105050.0,0.78647444]
[1749935660832,1.77778303,105060.0,105050.0,0.78647444]
[1749935661231,1.77778303,105060.0,105050.0,0.7442582]
[1749935663232,1.77778303,105060.0,105050.0,0.7865423]
[1749935663839,1.77778303,105060.0,105050.0,0.7442582]
[1749935664836,1.1531763,105060.0,105050.0,0.7442582]
[1749935665336,1.6589335,105060.0,105050.0,0.7442582]
[1749935665837,1.1531763,105060.0,105050.0,0.7442582]
[1749935666042,1.6589335,105060.0,105050.0,0.7442582]
[1749935673737,1.77793954,105060.0,105050.0,0.7442582]
[1749935675236,1.77793954,105060.0,105050.0,0.78655237]
[1749935675436,0.81505954,105060.0,105050.0,0.78655237]
[1749935675639,1.77709954,105060.0,105050.0,0.78655237]
[1749935675939,1.52422094,105060.0,105050.0,0.78655237]
[1749935676341,0.37188464,105060.0,105050.0,0.78655237]
[1749935676533,0.89844604,105060.0,105050.0,1.03943097]
[1749935676737,0.2528786,105060.0,105050.0,1.03943097]
[1749935677238,0.2528786,105060.0,105050.0,0.78655237]
[1749935677541,0.34211533,105060.0,105050.0,1.03943097]
[1749935679538,0.08923673,105060.0,105050.0,1.03943097]
[1749935679842,0.34211533,105060.0,105050.0,1.03943097]
[1749935680549,0.34211533,105060.0,105050.0,1.08377803]
[1749935680746,0.08923673,105060.0,105050.0,1.08377803]
[1749935680935,1.31193971,105070.0,105060.0,0.1902963]
[1749935681138,0.53249971,105070.0,105060.0,0.87099047]
[1749935681340,0.34221081,105070.0,105060.0,0.87099047]
[1749935682139,0.08933221,105070.0,105060.0,1.12386907]
[1749935682337,0.34221081,105070.0,105060.0,1.12386907]
[1749935683342,0.25297408,105070.0,105060.0,1.12486907]
[1749935683950,0.25297408,105070.0,105060.0,1.12586907]
[1749935688155,9.548e-05,105070.0,105060.0,2.15810767]
[1749935688755,9.548e-05,105070.0,105060.0,1.90522907]
[1749935689651,9.548e-05,105070.0,105060.0,1.94957613]
[1749935689956,9.548e-05,105070.0,105060.0,1.90522907]
[1749935691155,9.548e-05,105070.0,105060.0,1.65235047]
[1749935691355,9.548e-05,105070.0,105060.0,2.15810767]
[1749935692556,9.548e-05,105070.0,105060.0,2.17147991]
[1749935695556,8e-08,105070.0,105060.0,2.17147991]
[1749935696156,8e-08,105070.0,105060.0,2.21582697]
[1749935696555,8e-08,105070.0,105060.0,2.17147991]
[1749935696955,8e-08,105070.0,105060.0,2.21582697]
[1749935697962,8e-08,105070.0,105060.0,2.21682697]
[1749935698358,8e-08,105070.0,105060.0,2.21882697]
[1749935699865,8e-08,105070.0,105060.0,2.29527343]
[1749935702558,8e-08,105070.0,105060.0,2.97044943]
[1749935702761,0.20181491,105100.0,105090.0,0.1902417]
[1749935703066,0.39203851,105100.0,105090.0,2.1264003]
[1749935703268,0.39203851,105100.0,105090.0,2.1896003]
[1749935703463,0.20181491,105100.0,105090.0,2.1896003]
[1749935703860,0.20181491,105100.0,105090.0,1.9367217]
[1749935704061,0.20181491,105100.0,105090.0,2.1896003]
[1749935704272,0.20181491,105100.0,105090.0,1.9367217]
[1749935704461,0.20181491,105100.0,105090.0,2.1896003]
[1749935705262,0.20181491,105100.0,105090.0,1.9367217]
[1749935705462,0.23311491,105100.0,105090.0,2.1896003]
[1749935705659,0.48599351,105100.0,105090.0,2.1896003]
[1749935707172,0.23311491,105100.0,105090.0,2.1896003]
[1749935707373,0.48599351,105100.0,105090.0,2.1896003]
[1749935707570,0.48599351,105100.0,105090.0,1.2279203]
[1749935707771,0.48599351,105100.0,105090.0,2.1895603]
[1749935710276,0.48599351,105100.0,105090.0,1.2279203]
[1749935710571,0.48599351,105100.0,105090.0,2.1895203]
[1749935710973,0.23311491,105100.0,105090.0,2.1895203]
[1749935711175,0.48599351,105100.0,105090.0,2.1895203]
[1749935711578,0.67621721,105100.0,105090.0,0.3727217]
[1749935711876,0.29331491,105100.0,105090.0,0.3727217]
[1749935712175,0.73641721,105100.0,105090.0,0.6256003]
[1749935712374,0.64718048,105100.0,105090.0,0.4431203]
[1749935712672,0.73617904,105100.0,105090.0,1.5126417]
[1749935712872,0.64718048,105100.0,105090.0,1.5126417]
[1749935713169,0.73617969,105100.0,105090.0,1.1518417]
[1749935713378,0.73617969,105100.0,105090.0,0.7335217]
[1749935714480,0.64718048,105100.0,105090.0,0.7335217]
[1749935714668,0.73618675,105100.0,105090.0,0.7335217]
[1749935714874,0.64718048,105100.0,105090.0,0.7335217]
[1749935715379,0.64718048,105100.0,105090.0,0.5510417]
[1749935715577,0.64718048,105100.0,105090.0,0.7338817]
[1749935719488,0.65131883,105100.0,105090.0,0.7338817]
[1749935719690,0.65131883,105100.0,105090.0,0.7652817]
[1749935720989,0.74037113,105100.0,105090.0,0.7652817]
[1749935721490,0.20576883,105100.0,105090.0,0.8353203]
[1749935721687,0.20576883,105100.0,105090.0,0.8985203]
[1749935722584,0.20576883,105100.0,105090.0,0.9407024]